bitfinex-derivatives/quotes_ETHF0:USTF0_20250727
["timestamp","ask_amount","ask_price","bid_price","bid_amount"]
[1753587584562,0.5125,3777.3,3777.2,5.4334]
[1753587585163,0.018,3777.3,3777.2,5.4334]
[1753587585761,0.5125,3777.3,3777.2,5.4334]
[1753587587562,1.1989,3777.3,3777.2,5.4334]
[1753587587862,1.6284,3777.3,3777.2,5.4334]
[1753587588566,2.1591,3777.3,3777.2,5.4334]
[1753587591263,1.1989,3777.3,3777.2,5.4334]
[1753587591465,0.5125,3777.3,3777.2,5.4334]
[1753587593670,1.8716,3777.3,3777.2,5.4334]
[1753587594466,1.0545,3777.9,3777.8,0.82742]
[1753587594659,1.8466,3777.9,3777.8,2.22552]
[1753587595064,2.3411,3777.9,3777.8,2.22552]
[1753587595267,2.3411,3777.9,3777.8,5.43332]
[1753587597572,0.2,3777.9,3777.8,5.43332]
[1753587597771,0.02201764,3777.9,3777.8,5.43332]
[1753587597968,0.02201764,3777.9,3777.8,10.43332]
[1753587598277,0.81,3778.5,3778.4,2.19703]
[1753587598477,1.7954,3778.5,3778.4,2.19703]
[1753587598670,2.095,3778.5,3778.4,2.19703]
[1753587599175,0.4463,3778.5,3778.4,2.19703]
[1753587599370,1.6487,3778.8,3778.7,1.03119]
[1753587599675,1.6487,3778.8,3778.7,5.40479]
[1753587600077,2.095,3778.8,3778.7,5.40479]
[1753587600574,0.4463,3778.8,3778.7,5.40479]
[1753587600965,1.1229,3778.8,3778.7,5.40479]
[1753587601171,2.095,3778.8,3778.7,5.40479]
[1753587601366,0.7592,3778.8,3778.7,5.40479]
[1753587601571,0.3637,3779.0,3778.7,4.8757]
[1753587601771,0.8509,3779.4,3779.3,0.529]
[1753587601974,2.095,3779.4,3779.3,0.529]
[1753587602575,2.095,3778.9,3778.8,1.21838]
[1753587602775,2.095,3778.9,3778.8,2.19698]
[1753587603175,1.7821,3778.8,3778.7,3.2078]
[1753587603373,0.4463,3778.8,3778.7,5.40478]
[1753587604581,2.095,3778.8,3778.7,5.40478]
[1753587604775,1.3491,3779.1,3779.0,1.04515]
[1753587604977,3.2078,3779.6,3779.5,2.19688]
[1753587604978,1.6609,3779.6,3779.5,2.19688]
[1753587605176,2.095,3779.6,3779.5,1.21828]
[1753587605480,2.095,3779.6,3779.5,0.75568]
[1753587606682,2.095,3779.6,3779.5,1.21828]
[1753587607075,2.095,3779.6,3779.5,0.75568]
[1753587607377,0.2,3779.9,3779.2,3.5514]
[1753587607378,1.6487,3779.4,3779.2,3.5514]
[1753587607577,2.095,3779.3,3779.2,3.2078]
[1753587607778,2.095,3778.9,3778.8,3.2078]
[1753587608174,2.095,3778.9,3778.8,3.73688]
[1753587608783,0.8509,3778.9,3778.6,0.4626]
[1753587608978,2.095,3778.7,3778.6,0.4626]
[1753587609282,0.8509,3778.7,3778.5,0.52911]
[1753587609583,2.095,3778.6,3778.5,1.21841]
[1753587610384,2.095,3778.6,3778.5,2.19701]
[1753587610682,0.7592,3778.6,3778.5,2.19701]
[1753587611386,1.557,3778.6,3778.5,2.19701]
[1753587611587,2.095,3778.6,3778.5,2.19701]
[1753587622690,2.095,3778.6,3778.5,2.06411]
[1753587622893,0.538,3778.4,3778.3,3.2078]
[1753587623198,2.095,3778.4,3778.3,3.73694]
[1753587623495,2.095,3778.4,3778.3,3.96364]
[1753587623695,2.095,3778.4,3778.3,4.76984]
[1753587624998,2.095,3778.4,3778.3,4.42624]
[1753587625391,2.095,3778.4,3778.3,4.71564]
[1753587625592,2.095,3778.4,3778.3,5.05924]
[1753587625791,2.095,3778.4,3778.3,5.18264]
[1753587627698,2.095,3778.4,3778.3,5.38004]
[1753587628700,2.095,3778.4,3778.3,5.05924]
[1753587629696,2.095,3778.4,3778.3,5.17814]
[1753587630402,2.095,3778.4,3778.3,5.05924]
[1753587631096,2.095,3778.4,3778.3,4.71564]
[1753587631596,2.095,3778.4,3778.3,4.42624]
[1753587631801,2.095,3778.4,3778.3,4.42625]
[1753587632300,2.095,3778.4,3778.3,3.96365]
[1753587632502,2.62413,3778.4,3778.3,3.2078]
[1753587633601,2.095,3778.4,3778.3,3.73695]
[1753587634501,2.095,3778.4,3778.3,5.33175]
[1753587634698,0.4305,3778.6,3778.5,1.03812]
[1753587634893,0.4363,3778.6,3778.5,2.12392]
[1753587637805,2.0301,3778.6,3778.5,2.12392]
[1753587648813,2.0301,3778.6,3778.5,0.52912]
[1753587649014,2.0301,3778.4,3778.3,3.73695]
[1753587649618,2.0301,3778.4,3778.3,3.2078]
[1753587650110,2.0301,3778.3,3778.2,0.52915]
[1753587657217,2.0301,3778.3,3778.2,1.18085]
[1753587657618,2.0301,3778.3,3778.2,1.53365]
[1753587658429,2.0301,3778.3,3778.2,1.53365]
[1753587659918,2.0301,3778.3,3778.2,1.18085]
[1753587662319,2.0301,3778.3,3778.2,1.53365]
[1753587664927,0.7933,3778.0,3777.9,3.5606]
[1753587665124,1.9941,3778.0,3777.9,4.75929]
[1753587666127,1.9941,3778.0,3777.9,5.06269]
[1753587666330,1.9941,3778.0,3777.9,5.32899]
[1753587668031,1.9941,3778.0,3777.9,4.40649]
[1753587668429,1.9941,3778.0,3777.9,4.70989]
[1753587668731,1.9941,3778.0,3777.9,5.06269]
[1753587669131,1.9941,3778.0,3777.9,5.16509]
[1753587672425,1.9941,3778.0,3777.9,5.32899]
[1753587678342,2.52329,3778.0,3777.9,3.2078]
[1753587680344,2.52329,3778.0,3777.9,3.737]
[1753587680636,1.9941,3778.0,3777.9,3.737]
[1753587680838,2.52329,3778.0,3777.9,4.186]
[1753587682042,2.52329,3778.0,3777.9,4.4065]
[1753587682947,2.52329,3778.0,3777.9,1.1987]
[1753587683139,2.52329,3778.0,3777.9,0.6695]
[1753587683339,2.52329,3778.0,3777.9,0.7497]
[1753587684247,2.52329,3778.0,3777.9,0.2205]
[1753587685247,2.52329,3778.0,3777.9,0.7497]
[1753587685446,2.52329,3778.0,3777.9,1.1987]
[1753587685947,2.52329,3778.0,3777.9,0.6695]
[1753587686548,2.52329,3778.0,3777.9,1.1987]
[1753587686848,2.52329,3778.0,3777.9,1.5515]
[1753587687944,2.52329,3778.0,3777.9,1.0223]
[1753587689153,2.52329,3778.0,3777.9,1.5515]
[1753587689957,2.52329,3778.0,3777.9,1.8376]
[1753587690956,1.9941,3778.0,3777.9,1.8376]
[1753587691761,2.52329,3778.0,3777.9,1.3084]
[1753587692055,2.52329,3778.0,3777.9,1.8376]
[1753587693561,2.52329,3778.0,3777.9,1.3084]
[1753587694059,2.52329,3778.0,3777.9,1.8376]
[1753587694760,2.52329,3778.0,3777.9,1.3084]
[1753587695361,2.52329,3778.0,3777.9,1.8376]
[1753587699368,2.52329,3778.0,3777.9,2.0617]
[1753587699556,0.7489,3778.3,3778.2,1.29314]
[1753587699760,0.4431,3778.5,3778.4,1.17443]
[1753587699960,0.3266,3778.7,3778.6,0.7504]
[1753587700161,0.9642,3779.3,3779.2,0.6453]
[1753587700361,0.9642,3779.3,3779.2,2.01241]
[1753587700362,2.50128033,3779.3,3779.2,2.01241]
[1753587700866,1.7289,3779.3,3779.2,2.01241]
[1753587701771,0.4431,3779.3,3779.2,2.01241]
[1753587702172,2.0397,3779.8,3779.7,2.01235]
[1753587704173,2.0397,3779.8,3779.7,1.4834]
[1753587704374,2.56864,3779.8,3779.7,1.4834]
[1753587704671,0.8319,3779.6,3779.1,0.4333]
[1753587704872,2.56872,3779.2,3779.0,0.52904]
[1753587705174,2.0397,3779.1,3779.0,5.22024]
[1753587705375,0.4431,3779.1,3779.0,5.22024]
[1753587705572,1.3018,3779.7,3779.6,0.5074]
[1753587705878,1.5966,3779.7,3779.6,2.01236]
[1753587706071,5.0044,3779.9,3779.8,0.6453]
[1753587706379,5.4475,3779.9,3779.8,1.4834]
[1753587706679,5.97642,3779.9,3779.8,1.4834]
[1753587707671,5.4475,3779.9,3779.8,1.4834]
[1753587707971,5.97642,3779.9,3779.8,1.4834]
[1753587708273,2.76862,3779.9,3779.8,1.4834]
[1753587711281,2.76862,3779.9,3779.8,2.01234]
[1753587711683,2.76862,3779.9,3779.8,1.4834]
[1753587712174,0.7211,3779.9,3779.8,2.01234]
[1753587712374,0.6431,3779.9,3779.8,2.01234]
[1753587713177,0.9697,3779.9,3779.8,2.01234]
[1753587713378,2.2397,3779.9,3779.8,2.01234]
[1753587713879,0.2,3779.9,3779.8,2.01234]
[1753587714181,0.6431,3779.9,3779.8,2.01234]
[1753587714784,0.9697,3779.9,3779.8,2.01234]
[1753587715085,1.2645,3779.9,3779.8,2.01234]
[1753587715977,1.2645,3779.9,3779.8,5.22014]
[1753587716181,1.7026,3779.9,3779.8,5.22014]
[1753587716784,1.9289,3779.9,3779.8,5.22014]
[1753587717684,2.2397,3779.9,3779.8,5.22014]
[1753587718686,1.8016,3779.9,3779.8,5.22014]
[1753587718886,0.9379,3779.9,3779.8,5.22014]
[1753587719784,0.6431,3779.9,3779.8,5.22014]
[1753587719989,2.1642,3779.9,3779.8,5.22014]
[1753587720884,2.1642,3779.9,3779.8,4.6912]
[1753587721083,2.1642,3779.9,3779.8,2.01234]
[1753587721885,2.1642,3779.9,3779.8,5.22014]
[1753587722886,0.779,3779.7,3779.6,0.4689]
[1753587723086,1.9611,3779.7,3779.6,0.99786]
[1753587723491,1.9611,3779.7,3779.6,1.21856]
[1753587723887,1.9611,3779.7,3779.6,1.86596]
[1753587724287,1.9611,3779.7,3779.6,2.04866]
[1753587725191,0.44,3779.7,3779.6,2.04866]
[1753587725688,0.2,3779.9,3779.8,0.52894]
[1753587725890,0.2,3779.9,3779.8,5.25644]
[1753587732491,0.458,3780.3,3780.2,1.97828]
[1753587732697,0.458,3780.3,3780.2,5.25638]
[1753587733396,0.018,3780.3,3780.2,5.25638]
[1753587733996,1.9791,3780.3,3780.2,5.25638]
[1753587734592,1.9791,3780.3,3780.2,4.99783165]
[1753587736490,1.9791,3780.3,3780.2,5.33253165]
[1753587736687,1.9791,3780.3,3780.2,4.99783165]
[1753587736896,1.9791,3780.3,3780.2,4.21623165]
[1753587737297,1.9791,3780.3,3780.2,4.68513165]
[1753587737897,1.9791,3780.3,3780.2,5.33253165]
[1753587738798,1.9791,3780.3,3780.2,3.95738]
[1753587738998,1.9791,3780.3,3780.2,3.2078]
[1753587739992,1.9791,3780.3,3780.2,3.73668]
[1753587740298,1.9791,3780.3,3780.2,3.95738]
[1753587740501,1.9791,3780.3,3780.2,4.42628]
[1753587740797,2.50797,3780.3,3780.2,3.2078]
[1753587741098,1.9791,3780.3,3780.2,3.2078]
[1753587741799,2.50797,3780.3,3780.2,3.2078]
[1753587742493,1.9791,3780.3,3780.2,3.2078]
[1753587742693,1.9791,3780.3,3780.2,3.73668]
[1753587744496,2.50797,3780.3,3780.2,3.2078]
[1753587744698,2.50797,3780.3,3780.2,0.52888]
[1753587744898,1.9611,3780.0,3779.9,0.52892]
[1753587745302,1.9611,3780.0,3779.9,1.21852]
[1753587746404,1.9611,3780.0,3779.9,1.55322]
[1753587747007,1.9611,3780.0,3779.9,1.86592]
[1753587747303,1.9611,3780.0,3779.9,2.04862]
[1753587749707,1.9611,3780.0,3779.9,1.97832]
[1753587750207,1.9611,3780.0,3779.9,2.03572]
[1753587758412,0.44,3780.0,3779.9,2.03572]
[1753587758802,0.7767,3780.0,3779.9,2.03572]
[1753587759114,0.018,3780.3,3780.2,1.95598]
[1753587759314,0.018,3780.3,3780.2,5.16378]
[1753587760920,1.2984,3780.3,3780.2,5.16378]
[1753587761116,2.0252,3780.3,3780.2,5.16378]
[1753587764512,1.5859,3780.3,3780.2,5.16378]
[1753587764906,0.018,3780.3,3780.2,5.16378]
[1753587765315,0.4489,3780.6,3780.5,1.95594]
[1753587765510,0.7856,3780.6,3780.5,1.95594]
[1753587765712,2.0072,3780.6,3780.5,1.95594]
[1753587766807,0.3367,3781.1,3780.8,0.7992]
[1753587767118,0.776,3781.1,3781.0,2.54517]
[1753587768919,0.3367,3781.1,3781.0,2.54517]
[1753587769218,0.7856,3781.1,3781.0,2.54517]
[1753587769420,0.4489,3781.1,3781.0,2.54517]
[1753587769915,0.3367,3781.3,3781.2,1.36254]
[1753587770126,2.0072,3781.5,3781.4,2.54511]
[1753587771219,2.0072,3781.8,3781.6,0.52868]
[1753587771424,2.0072,3781.7,3781.6,0.52868]
[1753587772120,2.0072,3781.7,3781.6,0.74548]
[1753587772320,2.0072,3781.7,3781.6,1.19638]
[1753587772721,2.0072,3781.7,3781.6,2.54508]
[1753587773520,2.0072,3781.7,3781.6,5.75288]
[1753587773918,2.0072,3781.7,3781.6,5.2242]
[1753587774722,2.0072,3781.7,3781.6,4.4579]
[1753587774921,2.0072,3781.7,3781.6,1.77879]
[1753587775119,2.0072,3781.7,3781.6,4.98659]
[1753587776926,2.0072,3781.7,3781.6,5.75289]
[1753587778724,2.0072,3781.7,3781.6,3.95328]
[1753587778919,2.0072,3781.7,3781.6,0.74548]
[1753587779119,2.0072,3781.7,3781.6,0.52868]
[1753587779426,2.53587,3781.7,3781.6,0.52868]
[1753587779622,1.4175,3781.6,3781.5,0.52869]
[1753587779814,2.48808,3781.6,3781.5,0.2179]
[1753587780019,2.15543,3781.3,3781.2,3.2078]
[1753587780221,0.7894,3780.9,3780.8,3.73658]
[1753587780421,2.48818,3780.9,3780.8,3.2078]
[1753587780621,0.7894,3780.7,3780.6,1.2867]
[1753587780919,1.31822,3780.7,3780.5,0.98704]
[1753587781117,1.17,3780.6,3780.5,1.20494]
[1753587781316,1.9594,3780.6,3780.5,1.20494]
[1753587781526,1.9594,3780.6,3780.5,2.21284]
[1753587781728,0.52885,3780.4,3780.3,3.2078]
[1753587782028,0.7894,3780.0,3779.9,3.4257]
[1753587782223,1.9594,3780.0,3779.9,4.8918]
[1753587782421,1.9594,3780.0,3779.9,5.72962]
[1753587783021,2.48831,3780.0,3779.9,4.8918]
[1753587783223,1.9594,3780.0,3779.9,5.2007]
[1753587783425,1.9594,3780.0,3779.9,5.72962]
[1753587785726,0.4085,3780.0,3779.9,5.72962]
[1753587785928,1.3792,3780.0,3779.9,5.72962]
[1753587786130,1.9594,3780.0,3779.9,5.72962]
[1753587797728,1.9594,3780.8,3780.7,0.8147]
[1753587797933,1.5306,3780.8,3780.7,2.5217]
[1753587798338,1.9594,3780.8,3780.7,2.5217]
[1753587800936,1.9594,3781.1,3781.0,2.52167]
[1753587802946,1.9594,3781.1,3781.0,2.21277]
[1753587803140,1.9594,3781.1,3781.0,1.80167]
[1753587804043,1.9594,3781.1,3781.0,1.49997]
[1753587804238,1.9594,3780.5,3780.4,0.74675]
[1753587804441,1.9594,3780.5,3780.4,0.52885]
[1753587804944,0.7894,3780.5,3780.4,0.52885]
[1753587805540,1.9594,3780.5,3780.4,0.52885]
[1753587806043,0.7894,3781.0,3780.9,0.2179]
[1753587806242,1.5306,3781.0,3780.9,5.72948]
[1753587806443,1.9594,3781.2,3781.1,2.52165]
[1753587810850,0.5024,3781.0,3780.9,3.73657]
[1753587811146,1.9867,3781.0,3780.9,3.73657]
[1753587811746,1.9867,3781.0,3780.9,0.52877]
[1753587813144,1.9867,3781.0,3780.8,0.52879]
[1753587813345,1.9867,3780.7,3780.6,0.6564]
[1753587813751,1.9867,3780.7,3780.6,1.18522]
[1753587814451,1.9867,3780.7,3780.6,2.17752]
[1753587815841,1.9867,3780.7,3780.6,0.52882]
[1753587817855,1.9867,3780.6,3780.5,3.73663]
[1753587820059,1.9867,3780.6,3780.5,5.68913]
[1753587821750,1.9867,3780.6,3780.5,5.38533]
[1753587822054,1.9867,3780.6,3780.5,1.76603]
[1753587824957,1.9867,3780.6,3780.5,0.74183]
[1753587825553,1.9867,3780.6,3780.5,1.18523]
[1753587826066,1.9867,3780.6,3780.5,0.74183]
[1753587826760,1.9867,3780.6,3780.5,0.52883]
[1753587827551,1.9867,3780.6,3780.5,0.74183]
[1753587828357,1.9867,3780.6,3780.5,1.18523]
[1753587828961,1.30343,3780.6,3780.4,0.52885]
[1753587829164,1.9867,3780.5,3780.4,0.52885]
[1753587831470,2.51554,3780.5,3780.4,0.52885]
[1753587831674,1.30347,3780.3,3780.2,0.52887]
[1753587832273,0.7746,3779.9,3779.7,3.6193]
[1753587832467,2.51564,3779.8,3779.7,4.80464]
[1753587832768,2.51564,3779.8,3779.7,3.73674]
[1753587833273,1.9867,3779.8,3779.7,3.73674]
[1753587833471,1.9867,3779.8,3779.7,3.94974]
[1753587833673,2.51564,3779.8,3779.7,4.39314]
[1753587833869,1.9867,3779.8,3779.7,4.39314]
[1753587834870,1.9867,3779.8,3779.7,4.80464]
[1753587835975,0.323,3780.1,3780.0,0.5237]
[1753587836279,1.2121,3780.4,3780.3,1.32267]
[1753587836474,1.2121,3780.4,3780.3,2.48137]
[1753587836673,1.4095,3780.4,3780.3,2.48137]
[1753587836977,1.9867,3780.4,3780.3,2.48137]
[1753587837476,0.4273,3780.4,3780.3,2.48137]
[1753587837675,0.7602,3780.6,3780.4,0.7907]
[1753587837875,0.7602,3780.6,3780.2,3.2078]
[1753587837876,1.2484,3780.6,3780.5,2.51184]
[1753587838379,1.6499,3780.6,3780.5,2.51184]
[1753587838580,1.9628,3780.6,3780.5,2.51184]
[1753587842776,0.5204,3780.6,3780.5,2.04374]
[1753587842983,1.9628,3780.9,3780.8,2.5118]
[1753587844875,1.9628,3780.9,3780.8,1.7876]
[1753587845076,1.9628,3780.9,3780.8,0.7424]
[1753587846079,1.9628,3780.9,3780.8,1.2105]
[1753587846390,1.9628,3780.9,3780.8,0.5288]
[1753587846678,1.9628,3780.9,3780.8,1.7876]
[1753587846887,1.9628,3780.9,3780.8,2.5118]
[1753587848478,1.2484,3781.2,3781.1,1.31945]
[1753587848683,1.2484,3781.2,3781.1,2.51175]
[1753587848982,1.9628,3781.2,3781.1,2.51175]
[1753587850882,1.9628,3781.2,3781.1,1.78755]
[1753587851084,1.9628,3781.2,3781.1,0.74235]
[1753587851284,1.9628,3781.2,3781.1,0.52875]
[1753587851580,1.9628,3780.7,3780.6,1.78762]
[1753587851781,1.9628,3780.7,3780.6,0.52882]
[1753587852487,1.9628,3780.7,3780.6,0.74242]
[1753587852682,1.9628,3780.7,3780.6,1.21052]
[1753587853084,1.9628,3780.7,3780.6,0.74242]
[1753587853981,0.313,3780.4,3780.3,0.99697]
[1753587854186,1.9628,3780.4,3780.3,1.21057]
[1753587854389,1.9628,3780.4,3780.3,2.21627]
[1753587854588,1.9628,3780.4,3780.3,2.51187]
[1753587859497,1.9628,3780.4,3780.3,2.21627]
[1753587861094,1.9628,3780.4,3780.3,2.51187]
[1753587863292,1.9628,3780.4,3780.3,2.21627]
[1753587863694,1.9628,3780.4,3780.3,0.52887]
[1753587864193,1.9628,3780.3,3780.2,3.73668]
[1753587864995,2.49167,3780.3,3780.2,3.73668]
[1753587865201,1.9628,3780.3,3780.2,3.73668]
[1753587865796,2.49167,3780.3,3780.2,0.52888]
[1753587865992,1.5613,3779.9,3779.7,3.2078]
[1753587866197,3.2078,3780.5,3779.7,3.2078]
[1753587866198,1.9628,3779.8,3779.7,3.2078]
[1753587866402,2.49174,3779.8,3779.7,3.2078]
[1753587867301,1.9628,3779.8,3779.7,3.73675]
[1753587867502,1.2807,3779.8,3779.7,3.73675]
[1753587867702,1.9417,3779.8,3779.7,3.73675]
[1753587868903,1.9417,3779.8,3779.7,4.40375]
[1753587869103,1.9417,3779.8,3779.7,5.67565]
[1753587869304,2.47064,3779.8,3779.7,5.67565]
[1753587869700,1.9417,3779.8,3779.7,5.67565]
[1753587869899,2.47064,3779.8,3779.7,5.67565]
[1753587871104,1.9417,3779.8,3779.7,5.67565]
[1753587871904,1.9417,3779.8,3779.7,2.46785]
[1753587874808,2.47064,3779.8,3779.7,2.46785]
[1753587876410,0.6866,3780.3,3780.2,1.29878]
[1753587876612,1.9078,3780.6,3780.5,2.46774]
[1753587877415,1.9078,3780.6,3780.5,1.9389]
[1753587877710,2.43662,3780.6,3780.5,1.9389]
[1753587878816,2.43662,3780.6,3780.5,2.46774]
[1753587881415,2.43662,3780.6,3780.5,1.9389]
[1753587882513,2.43662,3780.6,3780.5,1.6288]
[1753587886219,1.93842,3780.6,3780.5,1.4226]
[1753587887026,1.93842,3780.6,3780.5,1.95144]
[1753587888832,1.93842,3780.6,3780.5,1.4226]
[1753587889227,1.93842,3780.6,3780.5,1.95144]
[1753587889928,1.93842,3780.6,3780.5,1.4226]
[1753587890229,1.93842,3780.6,3780.5,1.95144]
[1753587891528,2.43662,3780.6,3780.5,2.46774]
[1753587894826,2.43662,3780.6,3780.5,1.9389]
[1753587895021,2.43674,3779.8,3779.7,1.2307]
[1753587895227,1.31306,3779.6,3779.5,1.13327]
[1753587895529,1.9078,3779.6,3779.5,1.59407]
[1753587895824,1.9078,3779.6,3779.5,2.46787]
[1753587897120,3.2078,3780.3,3779.5,1.9389]
[1753587897331,2.43671,3780.0,3779.9,1.9389]
[1753587897724,2.43671,3780.0,3779.9,0.2062]
[1753587898027,2.43671,3780.0,3779.9,0.73512]
[1753587898429,2.43671,3780.0,3779.9,1.20342]
[1753587899931,2.43671,3780.0,3779.9,0.6745]
[1753587900129,0.7004,3780.1,3780.0,1.2349]
[1753587900430,1.4593,3780.1,3780.0,2.43011]
[1753587900631,0.7004,3780.3,3780.2,0.7442]
[1753587900831,2.43962,3780.6,3780.5,1.27304]
[1753587901026,1.9108,3780.6,3780.5,2.43004]
[1753587908325,2.43962,3780.6,3780.5,2.43004]
[1753587910735,1.9108,3780.6,3780.5,2.43004]
[1753587911329,2.43962,3780.6,3780.5,2.43004]
[1753587911834,1.9108,3780.6,3780.5,2.43004]
[1753587913036,2.43962,3780.6,3780.5,2.43004]
[1753587914532,1.9108,3780.6,3780.5,2.43004]
[1753587914738,1.9108,3780.6,3780.5,5.63784]
[1753587914929,2.43962,3780.6,3780.5,2.43004]
[1753587915335,1.9108,3780.6,3780.5,2.43004]
[1753587917340,2.43962,3780.6,3780.5,2.43004]
[1753587917535,1.9108,3780.6,3780.5,2.43004]
[1753587919635,2.43962,3780.6,3780.5,2.43004]
[1753587919842,2.43962,3780.6,3780.5,1.9012]
[1753587920045,1.9108,3780.2,3780.1,3.93469]
[1753587920340,1.9108,3780.2,3780.1,5.63789]
[1753587926938,1.2104,3780.5,3780.4,0.7442]
[1753587927144,1.2104,3780.5,3780.4,2.43005]
[1753587927543,1.9273,3780.5,3780.4,2.43005]
[1753587930345,1.9273,3780.5,3780.4,0.198]
[1753587930551,1.9236,3780.2,3780.1,3.2078]
[1753587930747,1.9236,3780.2,3779.7,0.39]
[1753587930748,2.04474,3779.8,3779.7,3.2078]
[1753587930952,2.04474,3779.8,3778.7,44.36340922]
[1753587930953,0.97091,3779.3,3779.2,3.2078]
[1753587931150,0.52906,3778.9,3778.7,3.8802]
[1753587931354,1.9236,3778.8,3778.7,1.87119]
[1753587931552,0.3091,3779.0,3778.7,5.1095]
[1753587931852,2.45266,3778.9,3778.8,1.9017]
[1753587932057,1.9236,3778.9,3778.8,1.5117]
[1753587932261,1.9236,3778.9,3778.8,0.9595]
[1753587932655,1.9236,3778.6,3778.5,1.6193]
[1753587932855,1.9236,3778.6,3778.5,4.96622]
[1753587933064,1.9236,3778.6,3778.5,5.63862]
[1753587934155,1.4693,3779.1,3779.0,1.9017]
[1753587934359,1.99833,3779.1,3779.0,1.9017]
[1753587934553,1.99833,3779.1,3779.0,0.2061]
[1753587934759,3.2078,3779.6,3778.7,1.66508]
[1753587934760,1.9236,3778.8,3778.7,2.43078]
[1753587935555,1.2067,3779.1,3779.0,1.29474]
[1753587935759,1.9236,3779.1,3779.0,1.9017]
[1753587935963,2.45263,3779.1,3779.0,1.6193]
[1753587936255,2.45263,3779.1,3779.0,0.2061]
[1753587936760,0.7524,3779.0,3778.9,0.52906]
[1753587936962,1.9236,3779.0,3778.9,0.52906]
[1753587937259,0.7524,3778.6,3778.5,3.94301]
[1753587937461,1.9236,3778.6,3778.5,5.63861]
[1753587938657,1.9236,3778.6,3777.8,1.96699861]
[1753587938658,1.8997,3777.9,3777.8,1.96699861]
[1753587938863,4.0575,3777.9,3777.8,2.62679861]
[1753587939061,0.653,3778.4,3778.3,2.43085]
[1753587939359,1.42477472,3779.7,3778.3,2.43085]
[1753587939360,3.2078,3779.2,3778.6,1.4132]
[1753587939563,1.1828,3779.4,3779.3,1.4132]
[1753587939764,1.4919,3779.4,3779.3,1.9017]
[1753587939963,2.02089,3779.4,3779.3,1.5117]
[1753587940260,2.42869,3779.4,3779.3,1.5117]
[1753587940460,2.42869,3779.4,3779.3,1.2419]
[1753587942863,2.42869,3779.4,3779.3,2.04071]
[1753587943168,1.5906,3779.4,3779.3,2.43071]
[1753587943368,2.11959,3779.4,3779.3,2.43071]
[1753587943568,2.42869,3779.4,3779.3,1.9017]
[1753587943768,2.42869,3779.4,3779.3,1.2419]
[1753587944068,1.28142,3779.2,3779.1,0.7783]
[1753587944270,4.48922,3779.2,3779.1,1.77093]
[1753587944569,5.63652,3779.2,3779.1,1.77093]
[1753587945272,5.63652,3779.2,3779.1,2.16093]
[1753587945668,5.63652,3779.2,3779.1,2.43073]
[1753587945669,5.1075,3779.2,3779.1,2.43073]
[1753587946070,2.42872,3779.2,3779.1,1.5117]
[1753587946270,5.63652,3779.2,3779.1,1.2419]
[1753587946474,5.63652,3779.2,3779.1,0.7783]
[1753587946770,1.8997,3779.0,3778.9,1.5117]
[1753587946975,1.8997,3779.0,3778.9,2.43076]
[1753587947377,2.42875,3779.0,3778.9,1.9017]
[1753587949273,5.63655,3779.0,3778.9,0.7783]
[1753587949478,2.02099,3778.7,3778.6,1.2419]
[1753587949778,2.42879,3778.7,3778.6,1.2419]
[1753587950974,2.42879,3778.7,3778.6,1.9017]
[1753587952870,2.42879,3778.7,3778.6,1.2419]
[1753587953375,2.42879,3778.7,3778.6,0.7783]
[1753587953578,2.42853,3778.4,3778.3,1.2419]
[1753587953878,5.63633,3778.4,3778.3,0.7783]
[1753587954471,5.63633,3778.4,3778.3,1.2419]
[1753587957283,26.77433,3778.4,3778.3,1.2419]
[1753587957480,26.77433,3778.4,3778.1,0.39]
[1753587957481,1.29456,3778.2,3778.1,0.872]
[1753587957782,2.41156,3778.2,3778.1,1.2352]
[1753587960787,2.41156,3778.2,3778.1,1.8952]
[1753587961182,2.10886,3778.2,3778.1,1.8952]
[1753587962385,0.8495,3778.2,3778.1,2.42437]
[1753587962592,21.65716,3778.2,3778.1,2.42437]
[1753587963091,22.04076,3778.2,3778.1,2.42437]
[1753587963492,22.30326,3778.2,3778.1,1.8952]
[1753587963986,22.93736,3778.2,3778.1,1.8952]
[1753587965091,23.23686,3778.2,3778.1,1.8952]
[1753587965485,23.23686,3778.2,3778.1,2.42437]
[1753587965685,0.52915,3778.3,3778.2,2.42436]
[1753587965886,21.65215,3778.3,3778.2,2.42436]
[1753587966087,0.52915,3778.3,3778.2,2.42436]
[1753587966285,0.91272,3778.5,3778.4,2.42433]
[1753587966487,22.03172,3778.5,3778.4,2.42433]
[1753587966791,22.03172,3778.5,3778.4,1.8952]
[1753587967290,22.29622,3778.5,3778.4,2.42433]
[1753587969388,22.93032,3778.5,3778.4,2.42433]
[1753587969785,22.3972,3778.5,3778.4,2.42433]
[1753587969984,22.92632,3778.5,3778.4,1.8952]
[1753587971496,22.92132,3778.5,3778.4,1.8952]
[1753587971895,23.52352,3778.5,3778.4,1.8952]
[1753587975199,2.41152,3778.5,3778.4,1.8952]
[1753587975401,23.51552,3778.5,3778.4,1.8952]
[1753587976902,2.41152,3778.5,3778.4,1.8952]
[1753587977205,23.51152,3778.5,3778.4,1.8952]
[1753587977597,23.50952,3778.5,3778.4,1.8952]
[1753587978103,23.50852,3778.5,3778.4,1.8952]